fUST/lending_fUST_20260510
["ID","MTS","AMOUNT","RATE_DAILY","PERIOD"]
[421937693,1778352654000,-500.0,0.00012328,2]
[421937691,1778352654000,-2948.1,0.00012328,2]
[421937698,1778352654000,-500.0,0.00012328,2]
[421937701,1778352654000,-2757.49,0.00012328,2]
[421937700,1778352654000,-2660.74,0.00012328,2]
[421937704,1778352654000,-500.0,0.00012328,2]
[421937706,1778352654000,-500.0,0.00012328,2]
[421937705,1778352654000,-500.0,0.00012328,2]
[421937703,1778352654000,-501.95320364,0.00012328,2]
[421937708,1778352654000,-500.0,0.00012328,2]
[421937695,1778352654000,-500.0,0.00012328,2]
[421937697,1778352654000,-500.0,0.00012328,2]
[421937707,1778352654000,-500.0,0.00012328,2]
[421937696,1778352654000,-533.81,0.00012328,2]
[421937702,1778352654000,-500.0,0.00012328,2]
[421937710,1778352654000,-500.0,0.00012328,2]
[421937720,1778352654000,-500.0,0.00012328,2]
[421937711,1778352654000,-500.0,0.00012328,2]
[421937709,1778352654000,-500.0,0.00012328,2]
[421937721,1778352654000,-406.91374206,0.00012328,2]
[421937722,1778352654000,-500.0,0.00012328,2]
[421937712,1778352654000,-1927.92,0.00012328,2]
[421937723,1778352654000,-500.0,0.00012328,2]
[421937714,1778352654000,-695.8,0.00012328,2]
[421937716,1778352654000,-500.0,0.00012328,2]
[421937713,1778352654000,-794.28,0.00012328,2]
[421937719,1778352654000,-500.0,0.00012328,2]
[421937718,1778352654000,-500.0,0.00012328,2]
[421937756,1778352654000,-1394.58,0.00012329,2]
[421937694,1778352654000,-500.0,0.00012328,2]
[421937755,1778352654000,-1673.49,0.00012329,2]
[421937795,1778352654000,-598.44,0.00012602,2]
[421937793,1778352654000,-555.45,0.00012602,2]
[421937794,1778352654000,-1119.62,0.00012602,2]
[421937796,1778352654000,-2498.94,0.00012602,2]
[421937792,1778352654000,-1688.15,0.00012602,2]
[421937797,1778352654000,-1451.36,0.00012602,2]
[421937798,1778352654000,-13362.14,0.00012602,2]
[421937799,1778352654000,-1099.83,0.00012602,2]
[421937800,1778352654000,-2350.62,0.00012602,2]
[421937810,1778352654000,-1926.76,0.00012602,2]
[421937812,1778352654000,-500.0,0.00012602,2]
[421937811,1778352654000,-500.0,0.00012602,2]
[421937803,1778352654000,-303.98,0.00012602,2]
[421937804,1778352654000,-500.0,0.00012602,2]
[421937802,1778352654000,-500.0,0.00012602,2]
[421937807,1778352654000,-500.0,0.00012602,2]
[421937809,1778352654000,-668.86,0.00012602,2]
[421937806,1778352654000,-590.38,0.00012602,2]
[421937805,1778352654000,-1115.35,0.00012602,2]
[421937808,1778352654000,-1446.54,0.00012602,2]
[421937816,1778352654000,-500.0,0.00012602,2]
[421937815,1778352654000,-1332.81,0.00012602,2]
[421937817,1778352654000,-1238.06,0.00012602,2]
[421937813,1778352654000,-962.42,0.00012602,2]
[421937819,1778352654000,-500.0,0.00012602,2]
[421937820,1778352654000,-1710.79,0.00012602,2]
[421937814,1778352654000,-947.74,0.00012602,2]
[421937818,1778352654000,-500.0,0.00012602,2]
[421937753,1778352654000,-2510.24,0.00012329,2]
[421937791,1778352654000,-500.0,0.00012602,2]
[421937786,1778352654000,-500.0,0.00012602,2]
[421937801,1778352654000,-1368.76,0.00012602,2]
[421937790,1778352654000,-500.0,0.00012602,2]
[421937788,1778352654000,-996.71,0.00012602,2]
[421937769,1778352654000,-750.8,0.00012329,2]
[421937771,1778352654000,-151.0,0.000126,2]
[421937767,1778352654000,-180.19,0.00012329,2]
[421937765,1778352654000,-324.33,0.00012329,2]
[421937763,1778352654000,-389.2,0.00012329,2]
[421937770,1778352654000,-238.55307033,0.00012467,21]
[421937762,1778352654000,-467.04,0.00012329,2]
[421937766,1778352654000,-216.22,0.00012329,2]
[421937759,1778352654000,-807.05,0.00012329,2]
[421937758,1778352654000,-968.46,0.00012329,2]
[421937760,1778352654000,-672.54,0.00012329,2]
[421937761,1778352654000,-560.45,0.00012329,2]
[421937764,1778352654000,-324.33,0.00012329,2]
[421937773,1778352654000,-500.0,0.00012602,2]
[421937768,1778352654000,-150.16,0.00012329,2]
[421937775,1778352654000,-500.0,0.00012602,2]
[421937783,1778352654000,-500.0,0.00012602,2]
[421937787,1778352654000,-500.0,0.00012602,2]
[421937785,1778352654000,-500.0,0.00012602,2]
[421937781,1778352654000,-1136.28,0.00012602,2]
[421937779,1778352654000,-597.54663858,0.00012602,2]
[421937782,1778352654000,-500.0,0.00012602,2]
[421937777,1778352654000,-500.0,0.00012602,2]
[421937789,1778352654000,-500.0,0.00012602,2]
[421937778,1778352654000,-500.0,0.00012602,2]
[421937774,1778352654000,-500.0,0.00012602,2]
[421937776,1778352654000,-500.0,0.00012602,2]
[421937772,1778352654000,-1362.0463,0.00012602,2]
[421937784,1778352654000,-500.0,0.00012602,2]
[421937780,1778352654000,-632.04,0.00012602,2]
[421937866,1778352655000,-500.0,0.00012876,2]
[421937862,1778352655000,-835.6880733,0.00012876,2]
[421937859,1778352655000,-6854.13854989,0.00012746,2]
[421937858,1778352655000,-151.0,0.000127,2]
[421937853,1778352655000,-1200.3,0.00012602,2]
[421937860,1778352655000,-4949.94853955,0.00012763,2]
[421937855,1778352655000,-500.0,0.00012602,2]
[421937863,1778352655000,-500.0,0.00012876,2]
[421937856,1778352655000,-779.15,0.00012602,2]
[421937857,1778352655000,-302.9513,0.00012602,2]
[421937865,1778352655000,-500.0,0.00012876,2]
[421937867,1778352655000,-500.0,0.00012876,2]
[421937861,1778352655000,-1362.0463,0.00012876,2]
[421937869,1778352655000,-500.0,0.00012876,2]
[421937878,1778352655000,-996.71,0.00012876,2]
[421937868,1778352655000,-500.0,0.00012876,2]
[421937870,1778352655000,-632.04,0.00012876,2]
[421937877,1778352655000,-500.0,0.00012876,2]
[421937873,1778352655000,-500.0,0.00012876,2]
[421937875,1778352655000,-500.0,0.00012876,2]
[421937872,1778352655000,-500.0,0.00012876,2]
[421937876,1778352655000,-500.0,0.00012876,2]
[421937874,1778352655000,-500.0,0.00012876,2]
[421937880,1778352655000,-500.0,0.00012876,2]
[421937879,1778352655000,-500.0,0.00012876,2]
[421937890,1778352655000,-1099.83,0.00012876,2]
[421937881,1778352655000,-500.0,0.00012876,2]
[421937891,1778352655000,-2350.62,0.00012876,2]
[421937864,1778352655000,-3339.4095409,0.00012876,2]
[421937871,1778352655000,-1136.28,0.00012876,2]
[421937854,1778352655000,-500.0,0.00012602,2]
[421937824,1778352655000,-630.06051891,0.00012602,2]
[421937848,1778352655000,-500.0,0.00012602,2]
[421937821,1778352655000,-557.58,0.00012602,2]
[421937822,1778352655000,-2948.1,0.00012602,2]
[421937825,1778352655000,-500.0,0.00012602,2]
[421937823,1778352655000,-500.0,0.00012602,2]
[421937830,1778352655000,-500.0,0.00012602,2]
[421937826,1778352655000,-756.93,0.00012602,2]
[421937838,1778352655000,-695.8,0.00012602,2]
[421937831,1778352655000,-500.0,0.00012602,2]
[421937836,1778352655000,-1927.92,0.00012602,2]
[421937837,1778352655000,-794.28,0.00012602,2]
[421937832,1778352655000,-500.0,0.00012602,2]
[421937834,1778352655000,-500.0,0.00012602,2]
[421937835,1778352655000,-500.0,0.00012602,2]
[421937827,1778352655000,-2660.74,0.00012602,2]
[421937829,1778352655000,-500.0,0.00012602,2]
[421937833,1778352655000,-500.0,0.00012602,2]
[421937839,1778352655000,-500.0,0.00012602,2]
[421937828,1778352655000,-2757.49,0.00012602,2]
[421937840,1778352655000,-1101.45,0.00012602,2]
[421937843,1778352655000,-500.0,0.00012602,2]
[421937842,1778352655000,-500.0,0.00012602,2]
[421937841,1778352655000,-500.0,0.00012602,2]
[421937846,1778352655000,-746.71,0.00012602,2]
[421937851,1778352655000,-500.0,0.00012602,2]
[421937845,1778352655000,-541.21,0.00012602,2]
[421937844,1778352655000,-486.89850194,0.00012602,2]
[421937852,1778352655000,-713.58,0.00012602,2]
[421937850,1778352655000,-1110.63,0.00012602,2]
[421937847,1778352655000,-500.0,0.00012602,2]
[421937849,1778352655000,-503.08,0.00012602,2]
[421937883,1778352655000,-555.45,0.00012876,2]
[421937885,1778352655000,-598.44,0.00012876,2]
[421937884,1778352655000,-1119.62,0.00012876,2]
[421937921,1778352655000,-746.71,0.00012876,2]
[421937920,1778352655000,-541.21,0.00012876,2]
[421937930,1778352655000,-779.15,0.00012876,2]
[421937923,1778352655000,-500.0,0.00012876,2]
[421937927,1778352655000,-713.58,0.00012876,2]
[421937925,1778352655000,-1110.63,0.00012876,2]
[421937922,1778352655000,-500.0,0.00012876,2]
[421937926,1778352655000,-500.0,0.00012876,2]
[421937924,1778352655000,-503.08,0.00012876,2]
[421937932,1778352655000,-151.0,0.000129,2]
[421937943,1778352655000,-800.0,0.00013053,2]
[421937944,1778352655000,-5099.20228979,0.00013058,2]
[421937938,1778352655000,-2136.77208337,0.00013,2]
[421937933,1778352655000,-151.0,0.000129,2]
[421937942,1778352655000,-1000.0,0.00013036,2]
[421937934,1778352655000,-1483.16094241,0.000129,2]
[421937931,1778352655000,-164.092299,0.00012887,2]
[421937937,1778352655000,-210.0,0.00012959,3]
[421937936,1778352655000,-1483.16094241,0.000129,2]
[421937939,1778352655000,-647.0,0.00013015,2]
[421937935,1778352655000,-1483.16094241,0.000129,2]
[421937941,1778352655000,-1412.0,0.00013015,2]
[421937940,1778352655000,-2201.0,0.00013015,2]
[421937945,1778352655000,-1483.16094241,0.00013066,2]
[421937946,1778352655000,-200.0,0.000131,2]
[421937947,1778352655000,-559.12357916,0.000131,2]
[421937949,1778352655000,-155.0,0.00013148,2]
[421937882,1778352655000,-1688.15,0.00012876,2]
[421937948,1778352655000,-155.0,0.00013148,2]
[421937917,1778352655000,-500.0,0.00012876,2]
[421937919,1778352655000,-500.0,0.00012876,2]
[421937950,1778352655000,-1362.0463,0.0001315,2]
[421937928,1778352655000,-1200.3,0.00012876,2]
[421937929,1778352655000,-559.73280252,0.00012876,2]
[421937888,1778352655000,-13362.14,0.00012876,2]
[421937887,1778352655000,-1451.36,0.00012876,2]
[421937889,1778352655000,-151.0,0.00012876,2]
[421937895,1778352655000,-1115.35,0.00012876,2]
[421937894,1778352655000,-500.0,0.00012876,2]
[421937892,1778352655000,-1368.76,0.00012876,2]
[421937896,1778352655000,-590.38,0.00012876,2]
[421937902,1778352655000,-947.74,0.00012876,2]
[421937900,1778352655000,-500.0,0.00012876,2]
[421937898,1778352655000,-668.86,0.00012876,2]
[421937897,1778352655000,-1446.54,0.00012876,2]
[421937899,1778352655000,-1926.76,0.00012876,2]
[421937901,1778352655000,-962.42,0.00012876,2]
[421937893,1778352655000,-500.0,0.00012876,2]
[421937886,1778352655000,-2498.94,0.00012876,2]
[421937904,1778352655000,-1238.06,0.00012876,2]
[421937903,1778352655000,-1332.81,0.00012876,2]
[421937913,1778352655000,-500.0,0.00012876,2]
[421937914,1778352655000,-1927.92,0.00012876,2]
[421937912,1778352655000,-500.0,0.00012876,2]
[421937911,1778352655000,-290.13,0.00012876,2]
[421937916,1778352655000,-695.8,0.00012876,2]
[421937918,1778352655000,-1101.45,0.00012876,2]
[421937905,1778352655000,-1710.79,0.00012876,2]
[421937909,1778352655000,-2660.74,0.00012876,2]
[421937910,1778352655000,-2757.49,0.00012876,2]
[421937907,1778352655000,-2948.1,0.00012876,2]
[421937906,1778352655000,-557.58,0.00012876,2]
[421937915,1778352655000,-794.28,0.00012876,2]
[421937908,1778352655000,-756.93,0.00012876,2]
[421937997,1778352656000,-1927.92,0.0001315,2]
[421938001,1778352656000,-1101.45,0.0001315,2]
[421937996,1778352656000,-2757.49,0.0001315,2]
[421937992,1778352656000,-557.58,0.0001315,2]
[421937991,1778352656000,-1710.79,0.0001315,2]
[421937985,1778352656000,-1926.76,0.0001315,2]
[421937986,1778352656000,-500.0,0.0001315,2]
[421937989,1778352656000,-1332.81,0.0001315,2]
[421937987,1778352656000,-962.42,0.0001315,2]
[421937979,1778352656000,-599.4461765,0.0001315,2]
[421937990,1778352656000,-1238.06,0.0001315,2]
[421937988,1778352656000,-947.74,0.0001315,2]
[421937984,1778352656000,-668.86,0.0001315,2]
[421938002,1778352656000,-541.21,0.0001315,2]
[421937994,1778352656000,-756.93,0.0001315,2]
[421937995,1778352656000,-2660.74,0.0001315,2]
[421937998,1778352656000,-794.28,0.0001315,2]
[421937999,1778352656000,-695.8,0.0001315,2]
[421938012,1778352656000,-6868.69853702,0.00013202,2]
[421938004,1778352656000,-500.0,0.0001315,2]
[421938005,1778352656000,-503.08,0.0001315,2]
[421938006,1778352656000,-1110.63,0.0001315,2]
[421938013,1778352656000,-5000.0,0.0001322,2]
[421938003,1778352656000,-746.71,0.0001315,2]
[421938007,1778352656000,-713.58,0.0001315,2]
[421938011,1778352656000,-151.0,0.000132,2]
[421937982,1778352656000,-590.38,0.0001315,2]
[421937993,1778352656000,-2948.1,0.0001315,2]
[421937983,1778352656000,-1446.54,0.0001315,2]
[421937959,1778352656000,-500.0,0.0001315,2]
[421937981,1778352656000,-1115.35,0.0001315,2]
[421937957,1778352656000,-632.04,0.0001315,2]
[421937953,1778352656000,-500.0,0.0001315,2]
[421937955,1778352656000,-323.36,0.0001315,2]
[421937956,1778352656000,-500.0,0.0001315,2]
[421937958,1778352656000,-1136.28,0.0001315,2]
[421937951,1778352656000,-500.0,0.0001315,2]
[421937954,1778352656000,-500.0,0.0001315,2]
[421937952,1778352656000,-500.0,0.0001315,2]
[421937965,1778352656000,-996.71,0.0001315,2]
[421937970,1778352656000,-555.45,0.0001315,2]
[421937971,1778352656000,-1119.62,0.0001315,2]
[421937969,1778352656000,-1688.15,0.0001315,2]
[421937966,1778352656000,-500.0,0.0001315,2]
[421937968,1778352656000,-500.0,0.0001315,2]
[421937963,1778352656000,-500.0,0.0001315,2]
[421937962,1778352656000,-500.0,0.0001315,2]
[421937960,1778352656000,-500.0,0.0001315,2]
[421937964,1778352656000,-500.0,0.0001315,2]
[421937961,1778352656000,-617.58007953,0.0001315,2]
[421937967,1778352656000,-500.0,0.0001315,2]
[421937972,1778352656000,-598.44,0.0001315,2]
[421937973,1778352656000,-2498.94,0.0001315,2]
[421937974,1778352656000,-1451.36,0.0001315,2]
[421937977,1778352656000,-2350.62,0.0001315,2]
[421937975,1778352656000,-13362.14,0.0001315,2]
[421937976,1778352656000,-1099.83,0.0001315,2]
[421937978,1778352656000,-1368.76,0.0001315,2]
[421937980,1778352656000,-500.0,0.0001315,2]
[421938014,1778352656000,-249.8950966,0.0001322,2]
[421938000,1778352656000,-500.0,0.0001315,2]
[421938008,1778352656000,-1200.3,0.0001315,2]
[421938054,1778352656000,-2498.94,0.00013424,2]
[421938046,1778352656000,-996.71,0.00013424,2]
[421938044,1778352656000,-500.0,0.00013424,2]
[421938048,1778352656000,-500.0,0.00013424,2]
[421938045,1778352656000,-500.0,0.00013424,2]
[421938047,1778352656000,-500.0,0.00013424,2]
[421938052,1778352656000,-1119.62,0.00013424,2]
[421938050,1778352656000,-1688.15,0.00013424,2]
[421938051,1778352656000,-555.45,0.00013424,2]
[421938049,1778352656000,-500.0,0.00013424,2]
[421938056,1778352656000,-13362.14,0.00013424,2]
[421938058,1778352656000,-2350.62,0.00013424,2]
[421938060,1778352656000,-500.0,0.00013424,2]
[421938055,1778352656000,-1451.36,0.00013424,2]
[421938059,1778352656000,-1368.76,0.00013424,2]
[421938066,1778352656000,-962.42,0.00013424,2]
[421938062,1778352656000,-590.38,0.00013424,2]
[421938068,1778352656000,-947.74,0.00013424,2]
[421938067,1778352656000,-500.0,0.00013424,2]
[421938063,1778352656000,-1446.54,0.00013424,2]
[421938057,1778352656000,-1099.83,0.00013424,2]
[421938064,1778352656000,-668.86,0.00013424,2]
[421938065,1778352656000,-1926.76,0.00013424,2]
[421938070,1778352656000,-1238.06,0.00013424,2]
[421938073,1778352656000,-2948.1,0.00013424,2]
[421938069,1778352656000,-1332.81,0.00013424,2]
[421938072,1778352656000,-557.58,0.00013424,2]
[421938010,1778352656000,-800.0,0.00013169,2]
[421938061,1778352656000,-1115.35,0.00013424,2]
[421938042,1778352656000,-500.0,0.00013424,2]
[421938071,1778352656000,-1710.79,0.00013424,2]
[421938043,1778352656000,-500.0,0.00013424,2]
[421938053,1778352656000,-598.44,0.00013424,2]
[421938009,1778352656000,-779.15,0.0001315,2]
[421938028,1778352656000,-183.66664448,0.00013365,14]
[421938027,1778352656000,-165.21299772,0.00013365,14]
[421938015,1778352656000,-176.77363988,0.00013233,14]
[421938026,1778352656000,-1930.66328148,0.00013361,2]
[421938018,1778352656000,-545.55141415,0.00013253,2]
[421938017,1778352656000,-800.0,0.00013253,2]
[421938019,1778352656000,-800.0,0.00013254,2]
[421938023,1778352656000,-800.0,0.00013288,2]
[421938020,1778352656000,-155.0,0.00013268,2]
[421938024,1778352656000,-743.13706622,0.00013324,2]
[421938021,1778352656000,-1101.75582566,0.00013278,2]
[421938022,1778352656000,-249.8950966,0.00013279,2]
[421938016,1778352656000,-800.0,0.00013247,2]
[421938029,1778352656000,-215.90254843,0.00013365,14]
[421938025,1778352656000,-1930.66328148,0.0001336,2]
[421938038,1778352656000,-500.0,0.00013424,2]
[421938037,1778352656000,-500.0,0.00013424,2]
[421938035,1778352656000,-500.0,0.00013424,2]
[421938032,1778352656000,-5187.85818453,0.0001341,2]
[421938041,1778352656000,-520.89651867,0.00013424,2]
[421938034,1778352656000,-500.0,0.00013424,2]
[421938040,1778352656000,-1136.28,0.00013424,2]
[421938033,1778352656000,-1627.7299,0.00013424,2]
[421938030,1778352656000,-1930.66328148,0.00013373,2]
[421938039,1778352656000,-632.04,0.00013424,2]
[421938031,1778352656000,-151.0,0.000134,2]
[421938036,1778352656000,-500.0,0.00013424,2]
[421938108,1778352657000,-1000.0,0.00013698,2]
[421938111,1778352657000,-500.0,0.00013698,2]
[421938112,1778352657000,-500.0,0.00013698,2]
[421938110,1778352657000,-500.0,0.00013698,2]
[421938107,1778352657000,-1000.0,0.00013698,2]
[421938113,1778352657000,-500.0,0.00013698,2]
[421938101,1778352657000,-200.0,0.00013697,2]
[421938097,1778352657000,-500.0,0.00013695,2]
[421938116,1778352657000,-500.0,0.00013698,2]
[421938104,1778352657000,-1000.0,0.00013698,2]
[421938109,1778352657000,-1001.53303547,0.00013698,2]
[421938102,1778352657000,-707.7496,0.00013698,2]
[421938117,1778352657000,-500.0,0.00013698,2]
[421938115,1778352657000,-500.0,0.00013698,2]
[421938114,1778352657000,-500.0,0.00013698,2]
[421938118,1778352657000,-500.0,0.00013698,2]
[421938120,1778352657000,-500.0,0.00013698,2]
[421938122,1778352657000,-332.23639842,0.00013698,2]
[421938124,1778352657000,-519.15413834,0.00013698,2]
[421938127,1778352657000,-500.0,0.00013698,2]
[421938121,1778352657000,-500.0,0.00013698,2]
[421938123,1778352657000,-500.0,0.00013698,2]
[421938126,1778352657000,-500.0,0.00013698,2]
[421938103,1778352657000,-654.2967,0.00013698,2]
[421938125,1778352657000,-500.0,0.00013698,2]
[421938119,1778352657000,-500.0,0.00013698,2]
[421938096,1778352657000,-500.0,0.00013673,2]
[421938087,1778352657000,-713.58,0.00013424,2]
[421938098,1778352657000,-500.0,0.00013695,2]
[421938129,1778352657000,-500.0,0.00013698,2]
[421938080,1778352657000,-500.0,0.00013424,2]
[421938081,1778352657000,-1101.45,0.00013424,2]
[421938074,1778352657000,-756.93,0.00013424,2]
[421938079,1778352657000,-695.8,0.00013424,2]
[421938078,1778352657000,-794.28,0.00013424,2]
[421938076,1778352657000,-2757.49,0.00013424,2]
[421938077,1778352657000,-1927.92,0.00013424,2]
[421938075,1778352657000,-2660.74,0.00013424,2]
[421938086,1778352657000,-1110.63,0.00013424,2]
[421938084,1778352657000,-500.0,0.00013424,2]
[421938090,1778352657000,-4998.98632435,0.000135,2]
[421938082,1778352657000,-541.21,0.00013424,2]
[421938085,1778352657000,-503.08,0.00013424,2]
[421938088,1778352657000,-1200.3,0.00013424,2]
[421938093,1778352657000,-500.0,0.00013637,2]
[421938083,1778352657000,-746.71,0.00013424,2]
[421938089,1778352657000,-779.15,0.00013424,2]
[421938092,1778352657000,-500.0,0.00013637,2]
[421938091,1778352657000,-151.69,0.0001351,2]
[421938095,1778352657000,-500.0,0.00013673,2]
[421938105,1778352657000,-1000.0,0.00013698,2]
[421938106,1778352657000,-1000.0,0.00013698,2]
[421938094,1778352657000,-6927.70006152,0.00013657,2]
[421938099,1778352657000,-500.14818489,0.00013695,2]
[421938100,1778352657000,-200.0,0.00013697,2]
[421938139,1778352657000,-500.0,0.00013698,2]
[421938170,1778352657000,-2543.96,0.00013698,2]
[421938131,1778352657000,-500.0,0.00013698,2]
[421938158,1778352657000,-2543.96,0.00013698,2]
[421938155,1778352657000,-2543.96,0.00013698,2]
[421938159,1778352657000,-2543.96,0.00013698,2]
[421938161,1778352657000,-2543.96,0.00013698,2]
[421938157,1778352657000,-2543.96,0.00013698,2]
[421938166,1778352657000,-2543.96,0.00013698,2]
[421938168,1778352657000,-2543.96,0.00013698,2]
[421938169,1778352657000,-2543.96,0.00013698,2]
[421938167,1778352657000,-2543.96,0.00013698,2]
[421938173,1778352657000,-2543.96,0.00013698,2]
[421938178,1778352657000,-500.0,0.00013698,2]
[421938171,1778352657000,-2543.96,0.00013698,2]
[421938177,1778352657000,-1136.28,0.00013698,2]
[421938128,1778352657000,-634.79520249,0.00013698,2]
[421938174,1778352657000,-2544.06339088,0.00013698,2]
[421938176,1778352657000,-632.04,0.00013698,2]
[421938172,1778352657000,-2543.96,0.00013698,2]
[421938175,1778352657000,-500.0,0.00013698,2]
[421938180,1778352657000,-500.0,0.00013698,2]
[421938179,1778352657000,-500.0,0.00013698,2]
[421938184,1778352657000,-500.0,0.00013698,2]
[421938183,1778352657000,-500.0,0.00013698,2]
[421938182,1778352657000,-500.0,0.00013698,2]
[421938185,1778352657000,-500.0,0.00013698,2]
[421938186,1778352657000,-500.0,0.00013698,2]
[421938160,1778352657000,-2543.96,0.00013698,2]
[421938156,1778352657000,-2543.96,0.00013698,2]
[421938181,1778352657000,-500.0,0.00013698,2]
[421938153,1778352657000,-2543.96,0.00013698,2]
[421938154,1778352657000,-2543.96,0.00013698,2]
[421938132,1778352657000,-500.0,0.00013698,2]
[421938133,1778352657000,-500.0,0.00013698,2]
[421938130,1778352657000,-500.0,0.00013698,2]
[421938138,1778352657000,-500.0,0.00013698,2]
[421938136,1778352657000,-500.0,0.00013698,2]
[421938134,1778352657000,-500.0,0.00013698,2]
[421938137,1778352657000,-500.0,0.00013698,2]
[421938140,1778352657000,-500.0,0.00013698,2]
[421938142,1778352657000,-500.0,0.00013698,2]
[421938144,1778352657000,-500.0,0.00013698,2]
[421938143,1778352657000,-500.0,0.00013698,2]
[421938135,1778352657000,-500.0,0.00013698,2]
[421938146,1778352657000,-500.0,0.00013698,2]
[421938141,1778352657000,-500.0,0.00013698,2]
[421938152,1778352657000,-2543.96,0.00013698,2]
[421938163,1778352657000,-2543.96,0.00013698,2]
[421938165,1778352657000,-2543.96,0.00013698,2]
[421938150,1778352657000,-588.32563005,0.00013698,2]
[421938162,1778352657000,-2543.96,0.00013698,2]
[421938148,1778352657000,-500.0,0.00013698,2]
[421938147,1778352657000,-500.0,0.00013698,2]
[421938151,1778352657000,-2543.96,0.00013698,2]
[421938145,1778352657000,-500.0,0.00013698,2]
[421938149,1778352657000,-500.0,0.00013698,2]
[421938164,1778352657000,-2543.96,0.00013698,2]
[421938209,1778352658000,-500.0,0.00013698,2]
[421938212,1778352658000,-500.0,0.00013698,2]
[421938220,1778352658000,-526.44979508,0.00013698,2]
[421938211,1778352658000,-500.0,0.00013698,2]
[421938210,1778352658000,-500.0,0.00013698,2]
[421938213,1778352658000,-500.0,0.00013698,2]
[421938217,1778352658000,-500.0,0.00013698,2]
[421938221,1778352658000,-257.03,0.00013698,2]
[421938219,1778352658000,-500.0,0.00013698,2]
[421938227,1778352658000,-590.38,0.00013698,2]
[421938222,1778352658000,-1099.83,0.00013698,2]
[421938223,1778352658000,-2350.62,0.00013698,2]
[421938224,1778352658000,-1368.76,0.00013698,2]
[421938225,1778352658000,-500.0,0.00013698,2]
[421938226,1778352658000,-1115.35,0.00013698,2]
[421938229,1778352658000,-668.86,0.00013698,2]
[421938239,1778352658000,-756.93,0.00013698,2]
[421938214,1778352658000,-500.0,0.00013698,2]
[421938228,1778352658000,-1446.54,0.00013698,2]
[421938218,1778352658000,-500.0,0.00013698,2]
[421938207,1778352658000,-500.0,0.00013698,2]
[421938196,1778352658000,-1688.15,0.00013698,2]
[421938215,1778352658000,-500.0,0.00013698,2]
[421938230,1778352658000,-1926.76,0.00013698,2]
[421938189,1778352658000,-500.0,0.00013698,2]
[421938188,1778352658000,-500.0,0.00013698,2]
[421938192,1778352658000,-996.71,0.00013698,2]
[421938190,1778352658000,-500.0,0.00013698,2]
[421938191,1778352658000,-374.09867078,0.00013698,2]
[421938193,1778352658000,-500.0,0.00013698,2]
[421938194,1778352658000,-500.0,0.00013698,2]
[421938195,1778352658000,-500.0,0.00013698,2]
[421938208,1778352658000,-500.0,0.00013698,2]
[421938197,1778352658000,-555.45,0.00013698,2]
[421938199,1778352658000,-598.44,0.00013698,2]
[421938200,1778352658000,-2498.94,0.00013698,2]
[421938201,1778352658000,-1451.36,0.00013698,2]
[421938203,1778352658000,-504.00734786,0.00013698,2]
[421938202,1778352658000,-500.0,0.00013698,2]